fUST/lending_fUST_20240110
["ID","MTS","AMOUNT","RATE_DAILY","PERIOD"]
[310953523,1704833439278,-2993.53442921,0.0002,2]
[310953524,1704833439289,-154.93802479,0.0002,2]
[310953525,1704833439298,-154.93802479,0.0002,2]
[310953526,1704833439307,-439.35135649,0.0002,2]
[310953527,1704833439316,-352.07693534,0.0002,2]
[310953528,1704833439326,-151.4394318,0.0002,2]
[310953529,1704833439337,-326.6549607,0.00021,2]
[310953530,1704833439346,-166.666666,0.00021918,2]
[310953531,1704833439356,-292.76629846,0.00022,4]
[310953532,1704833439365,-4916.51301772,0.00022,2]
[310953533,1704833439374,-156.82833971,0.00022,2]
[310953534,1704833439383,-3927.64829251,0.00022,2]
[310953535,1704833439392,-166.666666,0.00022431,2]
[310953536,1704833439401,-166.666666,0.00022944,2]
[310953537,1704833439410,-9918.08132345,0.00023,2]
[310953538,1704833439421,-2092.57766549,0.00023,2]
[310953539,1704833439430,-619.52000591,0.00023288,2]
[310953540,1704833439439,-500.0,0.00023288,2]
[310953541,1704833439448,-500.0,0.00023288,2]
[310953542,1704833439457,-393.3925669,0.00023288,2]
[310953543,1704833439466,-500.0,0.00023288,2]
[310953544,1704833439475,-500.0,0.00023288,2]
[310953545,1704833439484,-272.84363608,0.00023288,2]
[310953546,1704833439494,-500.0,0.00023288,4]
[310953547,1704833439504,-500.0,0.00023288,4]
[310953548,1704833439513,-157.39475144,0.00023288,4]
[310953549,1704833439522,-274.28444887,0.00023288,4]
[310953550,1704833439531,-235.33272037,0.00023288,4]
[310953551,1704833439541,-500.0,0.00023288,4]
[310953552,1704833439550,-584.09160499,0.00023288,4]
[310953553,1704833439559,-166.666666,0.00023456,2]
[310953554,1704833439568,-166.666666,0.00023969,2]
[310953555,1704833439577,-2292.62638427,0.00024,2]
[310953556,1704833439587,-154.93802479,0.00024,2]
[310953557,1704833439596,-166.666666,0.00024482,2]
[310953558,1704833439606,-197.9387417,0.00024658,2]
[310953559,1704833439615,-613.86507578,0.00025,2]
[310953560,1704833439625,-154.93802479,0.00025,2]
[310953561,1704833439636,-3000.0,0.00025,2]
[310953562,1704833439645,-4709.99124251,0.00025,2]
[310953563,1704833439654,-978.88032498,0.000259,2]
[310953564,1704833439663,-525.7750246,0.00026,2]
[310953565,1704833439674,-496.879336,0.0002698,5]
[310953566,1704833439683,-1407.38454672,0.00027,2]
[310953567,1704833439693,-155.0,0.00027397,2]
[310953568,1704833439702,-13020.47,0.00027397,3]
[310953569,1704833439711,-10850.39,0.00027397,3]
[310953570,1704833439721,-9041.99,0.00027397,3]
[310953571,1704833439730,-309.75221062,0.00027524,2]
[310953572,1704833439741,-82497.00903012,0.00027999,2]
[310953573,1704833439751,-155.09212697,0.00028,2]
[310953574,1704833439761,-155.0,0.00028767,2]
[310953575,1704833439771,-6243.35439241,0.0003,4]
[310953576,1704833439780,-463.25005188,0.0003,4]
[310953577,1704833439789,-1052.2435457,0.0003,5]
[310953578,1704833439799,-243.70040844,0.0003,4]
[310953579,1704833439808,-214.0,0.0003,2]
[310953580,1704833439817,-155.0,0.00030137,2]
[310953581,1704833439827,-168.97578692,0.00030234,2]
[310953582,1704833439835,-741.33007609,0.00030234,2]
[310953583,1704833439845,-622.71726392,0.00030234,2]
[310953584,1704833439854,-186.81517917,0.00030234,2]
[310953586,1704833439863,-166.87004263,0.00030239,2]
[310953588,1704833439872,-350.42708953,0.00030244,2]
[310953590,1704833439881,-209.65633103,0.00030264,2]
[310953592,1704833439890,-10667.6361852,0.00030688,4]
[310953594,1704833439900,-773.17195784,0.00030998,4]
[310953596,1704833439909,-641.24541786,0.00030998,4]
[310953598,1704833439918,-91008.99719477,0.00031,4]
[310953601,1704833439931,-10202.84952288,0.00031,4]
[310953603,1704833439943,-2730.74962181,0.00031,4]
[310953605,1704833439952,-155.0,0.00031507,2]
[310953607,1704833439961,-680.81316922,0.000318,3]
[310953609,1704833439970,-10000.0,0.00032,15]
[310953611,1704833439979,-620.00000017,0.0003201,2]
[310953613,1704833439992,-75042.18354461,0.00032444,4]
[310953615,1704833440001,-37300.72715441,0.00032444,4]
[310953617,1704833440010,-24440.87832141,0.00032444,3]
[310953619,1704833440020,-150.0,0.00032702,2]
[310953621,1704833440029,-371.71200355,0.00032876,7]
[310953623,1704833440038,-500.0,0.00032876,7]
[310953625,1704833440046,-454.63272706,0.00032876,7]
[310953627,1704833440055,-545.04442517,0.00032876,7]
[310953629,1704833440065,-500.0,0.00032876,7]
[310953630,1704833440074,-156.1230049,0.00032877,2]
[310953632,1704833440083,-270.65525247,0.00032925,7]
[310953633,1704833440093,-152.38900235,0.00033004,7]
[310953634,1704833440102,-173.001703,0.0003302,2]
[310953636,1704833440110,-156.569028,0.0003302,2]
[310953638,1704833440120,-270.65525247,0.00033121,7]
[310953639,1704833440129,-270.65525247,0.0003318,7]
[310953641,1704833440138,-154.41457912,0.00033278,7]
[310953643,1704833440147,-270.65525247,0.00033304,7]
[310953645,1704833440157,-270.65525247,0.00033328,7]
[310953646,1704833440166,-270.65525247,0.00033337,7]
[310953648,1704833440176,-270.65525247,0.00033467,7]
[310953650,1704833440185,-270.65525247,0.00033512,7]
[310953652,1704833440195,-270.65525247,0.00033752,7]
[310953654,1704833440207,-1810.4994063,0.0003379,2]
[310953656,1704833440219,-270.65525247,0.0003386,7]
[310953658,1704833440228,-2000.0,0.000339,2]
[310953660,1704833440238,-270.65525247,0.00033905,7]
[310953662,1704833440247,-2066.583364,0.0003391,2]
[310953664,1704833440256,-270.65525247,0.00033931,7]
[310953666,1704833440265,-1000.0,0.00034,7]
[310953668,1704833440275,-500.0,0.00034,7]
[310953670,1704833440290,-270.65525247,0.00034072,7]
[310953672,1704833440299,-154.41457912,0.00034223,7]
[310953674,1704833440308,-152.38900235,0.00034365,7]
[310953676,1704833440317,-1000.0,0.00034378,10]
[310953677,1704833440326,-270.65525247,0.00034459,7]
[310953678,1704833440336,-4000.0,0.00034521,2]
[310953679,1704833440345,-188.06870374,0.00034551,7]
[310953680,1704833440354,-500.0,0.00034551,7]
[310953681,1704833440365,-441.19963222,0.00034551,7]
[310953682,1704833440375,-500.0,0.00034551,7]
[310953683,1704833440385,-13632.10155416,0.00034552,5]
[310953684,1704833440395,-270.65525247,0.00034603,7]
[310953685,1704833440405,-156.569028,0.00034671,2]
[310953686,1704833440414,-270.65525247,0.00034682,7]
[310953687,1704833440424,-154.41457912,0.00034747,7]
[310953688,1704833440434,-150.92453773,0.00034768,2]
[310953689,1704833440443,-250.36569715,0.00034768,2]
[310953690,1704833440452,-8000.0,0.000348,14]
[310953691,1704833440461,-270.65525247,0.00034814,7]
[310953692,1704833440471,-270.65525247,0.00034835,7]
[310953693,1704833440480,-221.57047913,0.00034846,4]
[310953694,1704833440490,-12220.9100946,0.000349,5]
[310953695,1704833440499,-242.25670695,0.000349,30]
[310953696,1704833440508,-152.38900235,0.00034929,7]
[310953697,1704833440517,-24140.18610249,0.0003498,14]
[310953698,1704833440527,-388.53399242,0.00035,4]
[310953699,1704833440546,-283.822248,0.00035,7]
[310953700,1704833440555,-7803.1787706,0.00035,4]
[310953701,1704833440565,-6802.96007234,0.00035,4]
[310953702,1704833440575,-332.52969855,0.00035,4]
[310953703,1704833440584,-591.11085398,0.00035,2]
[310953704,1704833440593,-3508.87335994,0.00035,2]
[310953705,1704833440603,-2967.07,0.00035,2]
[310953706,1704833440612,-7503.56939095,0.00035,45]
[310953707,1704833440621,-309.81411154,0.00035,4]
[310953709,1704833440630,-156.08945156,0.00035,6]
[310953711,1704833440639,-813.30493426,0.00035,14]
[310953713,1704833440649,-1596.96171091,0.00035,7]
[310953715,1704833440658,-500.0,0.00035,7]
[310953717,1704833440668,-5017.63886817,0.00035,30]
[310953719,1704833440679,-270.65525247,0.00035054,7]
[310953721,1704833440688,-305.9999997,0.0003506,2]
[310953723,1704833440698,-270.65525247,0.00035064,7]
[310953724,1704833440708,-200.0,0.000351,4]
[310953725,1704833440716,-1500.0,0.000351,2]
[310953726,1704833440726,-5000.0,0.00035107,7]
[310953727,1704833440735,-5000.0,0.00035107,7]
[310953728,1704833440744,-154.41457915,0.00035107,7]
[310953729,1704833440753,-10000.0,0.00035199,30]
[310953730,1704833440763,-270.65525247,0.00035277,7]
[310953731,1704833440773,-270.65525247,0.00035294,7]
[310953732,1704833440782,-270.65525247,0.00035352,7]
[310953733,1704833440793,-301.84907546,0.00035353,4]
[310953734,1704833440803,-270.65525247,0.00035376,7]
[310953735,1704833440813,-270.65525247,0.00035381,7]
[310953736,1704833440822,-152.38900235,0.00035393,7]
[310953737,1704833440831,-152.38900235,0.00035461,7]
[310953738,1704833440841,-301.0,0.00035497,2]
[310953739,1704833440851,-23031.50803817,0.000355,14]
[310953740,1704833440861,-258.13577068,0.00035503,2]
[310953741,1704833440870,-32098.36745887,0.00035516,3]
[310953742,1704833440881,-1000.0,0.00035534,2]
[310953743,1704833440889,-500.0,0.00035596,2]
[310953744,1704833440899,-1000.0,0.000356,2]
[310953745,1704833440908,-270.65525247,0.00035612,7]
[310953746,1704833440919,-2447.20731288,0.00035616,2]
[310953747,1704833440929,-409.53045102,0.00035616,2]
[310953748,1704833440938,-4450.36044221,0.00035616,4]
[310953749,1704833440948,-1025.4344042,0.00035616,2]
[310953750,1704833440957,-2793.4776162,0.00035616,4]
[310953751,1704833440965,-649.46848965,0.00035616,4]
[310953752,1704833440974,-4039.92201284,0.00035616,4]
[310953753,1704833440983,-154.93802479,0.00035616,4]
[310953754,1704833440992,-300.0,0.00035616,4]
[310953755,1704833441002,-200.0,0.00035616,2]
[310953756,1704833441011,-500.0,0.00035616,2]
[310953757,1704833441020,-500.0,0.00035616,2]
[310953758,1704833441030,-500.0,0.00035616,2]
[310953759,1704833441039,-500.0,0.00035616,2]
[310953760,1704833441048,-500.0,0.00035616,2]
[310953761,1704833441057,-200.0,0.00035616,2]
[310953762,1704833441065,-500.0,0.00035616,2]
[310953763,1704833441075,-511.46965573,0.00035616,2]
[310953764,1704833441084,-521.76,0.00035616,2]
[310953765,1704833441093,-500.0,0.00035616,2]
[310953766,1704833441103,-500.0,0.00035616,2]
[310953767,1704833441112,-500.37362481,0.00035616,2]
[310953768,1704833441121,-202.38965493,0.00035616,2]
[310953769,1704833441131,-500.72835156,0.00035616,2]
[310953770,1704833441140,-301.78455933,0.00035616,2]
[310953771,1704833441149,-500.44723208,0.00035616,2]
[310953772,1704833441158,-500.0,0.00035616,2]
[310953773,1704833441167,-500.0,0.00035616,2]
[310953774,1704833441177,-601.45,0.00035616,2]
[310953775,1704833441186,-500.0,0.00035616,2]
[310953776,1704833441195,-500.0,0.00035616,2]
[310953777,1704833441204,-608.25509253,0.00035616,2]
[310953778,1704833441213,-500.0,0.00035616,2]
[310953779,1704833441222,-502.57378155,0.00035616,2]
[310953780,1704833441231,-500.0,0.00035616,2]
[310953781,1704833441240,-500.0,0.00035616,2]
[310953782,1704833441249,-647.75,0.00035616,2]
[310953783,1704833441258,-547.39227854,0.00035616,2]
[310953784,1704833441267,-500.0,0.00035616,2]
[310953785,1704833441279,-500.0,0.00035616,2]
[310953786,1704833441288,-522.91458442,0.00035616,2]
[310953787,1704833441297,-501.02318153,0.00035616,2]
[310953788,1704833441306,-500.0,0.00035616,2]
[310953789,1704833441315,-500.0,0.00035616,2]
[310953790,1704833441324,-638.75462537,0.00035616,2]
[310953791,1704833441333,-500.28637747,0.00035616,2]
[310953792,1704833441438,-1067.83,0.00035616,2]
[310953793,1704833441447,-503.17940485,0.00035616,2]
[310953794,1704833441457,-500.0,0.00035616,2]
[310953795,1704833441466,-529.83107318,0.00035616,2]
[310953796,1704833441475,-956.45,0.00035616,2]
[310953797,1704833441484,-500.0,0.00035616,2]
[310953798,1704833441493,-500.0,0.00035616,2]
[310953799,1704833441502,-500.0,0.00035616,2]
[310953800,1704833441511,-500.0,0.00035616,2]
[310953801,1704833441520,-500.0,0.00035616,2]
[310953802,1704833441529,-501.03286925,0.00035616,2]
[310953803,1704833441538,-502.36846477,0.00035616,2]
[310953804,1704833441548,-500.0,0.00035616,2]
[310953805,1704833441557,-500.0,0.00035616,2]
[310953806,1704833441566,-335.92479617,0.00035616,2]
[310953807,1704833441575,-500.0,0.00035616,2]
[310953808,1704833441583,-500.0,0.00035616,2]
[310953809,1704833441592,-500.0,0.00035616,2]
[310953810,1704833441601,-500.0,0.00035616,2]
[310953811,1704833441610,-500.0,0.00035616,2]
[310953812,1704833441619,-500.0,0.00035616,2]
[310953813,1704833441628,-500.0,0.00035616,2]
[310953814,1704833441637,-500.0,0.00035616,2]
[310953815,1704833441646,-500.0,0.00035616,2]
[310953816,1704833441655,-500.94586147,0.00035616,2]
[310953817,1704833441664,-500.0,0.00035616,2]
[310953818,1704833441674,-500.0,0.00035616,2]
[310953819,1704833441683,-500.0,0.00035616,2]
[310953820,1704833441692,-500.0,0.00035616,2]
[310953821,1704833441702,-501.91854851,0.00035616,2]
[310953822,1704833441711,-500.0,0.00035616,2]
[310953823,1704833441720,-500.0,0.00035616,2]
[310953824,1704833441730,-1437.15,0.00035616,2]
[310953825,1704833441739,-1437.15,0.00035616,2]
[310953826,1704833441749,-1437.15,0.00035616,2]
[310953827,1704833441758,-1437.15,0.00035616,2]
[310953828,1704833441767,-1437.15,0.00035616,2]
[310953829,1704833441776,-1437.15,0.00035616,2]
[310953830,1704833441785,-1437.15,0.00035616,2]
[310953831,1704833441793,-1437.15,0.00035616,2]
[310953832,1704833441802,-1437.15,0.00035616,2]
[310953833,1704833441812,-1437.15,0.00035616,2]
[310953834,1704833441821,-1437.15,0.00035616,2]
[310953835,1704833441830,-1437.15,0.00035616,2]
[310953836,1704833441839,-1437.15,0.00035616,2]
[310953837,1704833441848,-1437.15,0.00035616,2]
[310953838,1704833441857,-1437.15,0.00035616,2]
[310953839,1704833441866,-1437.15,0.00035616,2]
[310953840,1704833441875,-1437.15,0.00035616,2]
[310953841,1704833441884,-1437.15,0.00035616,2]
[310953842,1704833441893,-1437.15,0.00035616,2]
[310953843,1704833441902,-1437.15,0.00035616,2]
[310953844,1704833441911,-1437.15,0.00035616,2]
[310953845,1704833441921,-1437.15,0.00035616,2]
[310953846,1704833441929,-1437.15,0.00035616,2]
[310953847,1704833441938,-1437.17841585,0.00035616,2]
[310953848,1704833441948,-500.29612189,0.00035616,2]
[310953849,1704833441957,-500.0,0.00035616,2]
[310953850,1704833441967,-500.0,0.00035616,2]
[310953851,1704833441976,-500.0,0.00035616,2]
[310953852,1704833441987,-500.0,0.00035616,2]
[310953853,1704833441996,-501.19931651,0.00035616,2]
[310953855,1704833442005,-500.0,0.00035616,2]
[310953857,1704833442014,-292.46488415,0.00035616,2]
[310953859,1704833442023,-500.0,0.00035616,2]
[310953861,1704833442032,-500.0,0.00035616,2]
[310953863,1704833442041,-520.06525507,0.00035616,2]
[310953865,1704833442050,-500.0,0.00035616,2]
[310953867,1704833442058,-501.41201149,0.00035616,2]
[310953869,1704833442067,-602.6218737,0.00035616,2]
[310953871,1704833442076,-500.0,0.00035616,2]
[310953873,1704833442085,-500.0,0.00035616,2]
[310953875,1704833442094,-500.0,0.00035616,2]
[310953877,1704833442103,-500.0,0.00035616,2]
[310953879,1704833442112,-620.0768675,0.00035616,2]
[310953881,1704833442121,-500.0,0.00035616,2]
[310953882,1704833442129,-764.72,0.00035616,2]
[310953883,1704833442139,-535.27883269,0.00035616,2]
[310953884,1704833442148,-517.92350944,0.00035616,2]
[310953885,1704833442157,-500.0,0.00035616,2]
[310953886,1704833442166,-500.0,0.00035616,2]
[310953887,1704833442176,-500.0,0.00035616,2]
[310953888,1704833442185,-500.0,0.00035616,2]
[310953889,1704833442194,-500.0,0.00035616,2]
[310953890,1704833442203,-502.48157989,0.00035616,2]
[310953891,1704833442212,-500.0,0.00035616,2]
[310953892,1704833442221,-500.0,0.00035616,2]
[310953893,1704833442230,-500.0,0.00035616,2]
[310953894,1704833442239,-469.14788274,0.00035616,2]
[310953895,1704833442248,-562.27630934,0.00035616,2]
[310953896,1704833442257,-500.0,0.00035616,2]
[310953897,1704833442266,-500.0,0.00035616,2]
[310953898,1704833442276,-500.0,0.00035616,2]
[310953899,1704833442290,-511.16530344,0.00035616,2]
[310953900,1704833442299,-500.0,0.00035616,2]
[310953901,1704833442309,-500.0,0.00035616,2]
[310953902,1704833442318,-500.0,0.00035616,2]
[310953903,1704833442327,-500.0,0.00035616,2]
[310953904,1704833442336,-696.16,0.00035616,2]
[310953905,1704833442344,-510.69327756,0.00035616,2]
[310953906,1704833442354,-625.84,0.00035616,2]
[310953907,1704833442363,-500.0,0.00035616,2]
[310953908,1704833442372,-500.0,0.00035616,2]
[310953909,1704833442381,-500.0,0.00035616,2]
[310953910,1704833442390,-500.0,0.00035616,2]
[310953911,1704833442399,-456.63432085,0.00035616,2]
[310953912,1704833442408,-500.0,0.00035616,2]
[310953913,1704833442417,-500.0,0.00035616,2]
[310953914,1704833442427,-1000.0,0.00035616,2]
[310953915,1704833442436,-500.0,0.00035616,2]
[310953916,1704833442445,-515.07091795,0.00035616,2]
[310953917,1704833442455,-500.0,0.00035616,2]
[310953918,1704833442465,-500.0,0.00035616,2]
[310953919,1704833442474,-500.0,0.00035616,2]
[310953920,1704833442483,-500.0,0.00035616,2]
[310953921,1704833442492,-500.0,0.00035616,2]
[310953922,1704833442501,-500.0,0.00035616,2]
[310953923,1704833442510,-523.27587313,0.00035616,2]
[310953924,1704833442520,-636.68,0.00035616,2]
[310953925,1704833442529,-503.19819389,0.00035616,2]
[310953926,1704833442538,-500.0,0.00035616,2]
[310953927,1704833442548,-500.0,0.00035616,2]
[310953928,1704833442557,-500.0,0.00035616,2]
[310953929,1704833442567,-1583.37,0.00035616,2]
[310953930,1704833442576,-500.19647848,0.00035616,2]
[310953931,1704833442585,-500.0,0.00035616,2]
[310953932,1704833442596,-500.58457441,0.00035616,2]
[310953933,1704833442605,-500.0,0.00035616,2]
[310953934,1704833442615,-500.41320758,0.00035616,2]
[310953935,1704833442624,-500.0,0.00035616,2]
[310953936,1704833442634,-500.0,0.00035616,2]
[310953937,1704833442643,-4020.53,0.00035616,2]
[310953938,1704833442653,-500.0,0.00035616,2]
[310953939,1704833442663,-500.0,0.00035616,2]
[310953940,1704833442672,-500.73511553,0.00035616,2]
[310953941,1704833442682,-500.0,0.00035616,2]
[310953942,1704833442691,-503.58707094,0.00035616,2]
[310953943,1704833442700,-1000.0,0.00035616,2]
[310953944,1704833442709,-561.4115997,0.00035616,2]
[310953945,1704833442720,-523.2667145,0.00035616,2]
[310953946,1704833442729,-500.0,0.00035616,2]
[310953947,1704833442738,-501.7226315,0.00035616,2]
[310953948,1704833442747,-500.0,0.00035616,2]
[310953949,1704833442756,-500.0,0.00035616,2]
[310953950,1704833442766,-500.0,0.00035616,2]
[310953951,1704833442775,-603.27854241,0.00035616,2]
[310953952,1704833442785,-500.0,0.00035616,2]
[310953953,1704833442794,-501.57911517,0.00035616,2]
[310953954,1704833442803,-500.0,0.00035616,2]
[310953955,1704833442812,-500.53498006,0.00035616,2]
[310953956,1704833442821,-500.0,0.00035616,2]
[310953957,1704833442830,-503.65,0.00035616,2]
[310953958,1704833442839,-500.0,0.00035616,2]
[310953959,1704833442849,-501.84230411,0.00035616,2]
[310953960,1704833442858,-500.0,0.00035616,2]
[310953961,1704833442867,-500.0,0.00035616,2]
[310953962,1704833442876,-500.0,0.00035616,2]
[310953963,1704833442885,-500.0,0.00035616,2]
[310953964,1704833442894,-500.0,0.00035616,2]
[310953965,1704833442904,-500.0,0.00035616,2]
[310953966,1704833442913,-500.0,0.00035616,2]
[310953967,1704833442922,-500.0,0.00035616,2]
[310953968,1704833442931,-500.0,0.00035616,2]
[310953969,1704833442940,-500.0,0.00035616,2]
[310953970,1704833442949,-500.0,0.00035616,2]
[310953971,1704833442958,-500.0,0.00035616,2]
[310953972,1704833442969,-313.82233785,0.00035616,2]
[310953973,1704833442978,-500.0,0.00035616,2]
[310953974,1704833442987,-500.0,0.00035616,2]
[310953975,1704833442998,-500.0,0.00035616,2]
[310953976,1704833443007,-500.0,0.00035616,2]
[310953977,1704833443016,-500.0,0.00035616,2]
[310953978,1704833443025,-500.0,0.00035616,2]
[310953979,1704833443034,-196.89239958,0.00035616,2]
[310953980,1704833443043,-500.0,0.00035616,2]
[310953981,1704833443052,-500.0,0.00035616,2]
[310953982,1704833443062,-502.68075034,0.00035616,2]
[310953983,1704833443071,-514.17470731,0.00035616,2]
[310953984,1704833443081,-531.27074928,0.00035616,2]
[310953985,1704833443090,-629.42,0.00035616,2]
[310953987,1704833443099,-500.0,0.00035616,2]
[310953989,1704833443109,-500.0,0.00035616,2]
[310953991,1704833443118,-506.83720369,0.00035616,2]
[310953993,1704833443127,-500.0,0.00035616,2]
[310953995,1704833443136,-500.0,0.00035616,2]
[310953997,1704833443146,-500.0,0.00035616,2]
[310954000,1704833443155,-501.54141502,0.00035616,2]
[310954001,1704833443164,-541.66,0.00035616,2]
[310954003,1704833443174,-500.0,0.00035616,2]
[310954005,1704833443183,-500.0,0.00035616,2]
[310954006,1704833443192,-500.0,0.00035616,2]
[310954007,1704833443201,-500.0,0.00035616,2]
[310954008,1704833443210,-2772.66,0.00035616,2]
[310954009,1704833443219,-500.0,0.00035616,2]
[310954010,1704833443228,-500.0,0.00035616,2]
[310954011,1704833443238,-500.0,0.00035616,2]
[310954012,1704833443247,-500.0,0.00035616,2]
[310954013,1704833443256,-602.04429128,0.00035616,2]
[310954014,1704833443265,-194.82128027,0.00035616,5]
[310954015,1704833443275,-500.0,0.00035616,2]
[310954016,1704833443289,-506.33631279,0.00035616,2]
[310954017,1704833443298,-513.51702195,0.00035616,2]
[310954018,1704833443308,-500.0,0.00035616,2]
[310954019,1704833443317,-500.0,0.00035616,2]
[310954022,1704833443327,-500.0,0.00035616,2]
[310954024,1704833443335,-500.0,0.00035616,2]
[310954026,1704833443345,-500.0,0.00035616,2]
[310954028,1704833443354,-569.71034661,0.00035616,2]
[310954031,1704833443364,-500.0,0.00035616,2]
[310954033,1704833443372,-500.0,0.00035616,2]
[310954035,1704833443380,-500.0,0.00035616,2]
[310954037,1704833443389,-829.12,0.00035616,2]
[310954039,1704833443397,-500.0,0.00035616,2]
[310954041,1704833443407,-1878.72,0.00035616,2]
[310954043,1704833443416,-205.37417053,0.00035616,2]
[310954045,1704833443426,-500.0,0.00035616,2]
[310954047,1704833443435,-500.0,0.00035616,2]
[310954048,1704833443444,-9762.02285107,0.00035616,10]
[310954051,1704833443454,-500.0,0.00035616,2]
[310954052,1704833443464,-511.67022606,0.00035616,2]
[310954055,1704833443473,-508.34241231,0.00035616,2]
[310954057,1704833443483,-505.31403919,0.00035616,2]
[310954059,1704833443492,-501.47854896,0.00035616,2]
[310954061,1704833443502,-500.0,0.00035616,2]
[310954065,1704833443512,-500.0,0.00035616,2]
[310954066,1704833443522,-500.0,0.00035616,2]
[310954068,1704833443532,-500.0,0.00035616,2]
[310954071,1704833443542,-500.0,0.00035616,2]
[310954072,1704833443552,-500.62596712,0.00035616,2]
[310954075,1704833443563,-197.03020795,0.00035616,2]
[310954076,1704833443572,-500.0,0.00035616,2]
[310954078,1704833443581,-500.00988812,0.00035616,2]
[310954092,1704833443686,-500.0,0.00035616,2]
[310954093,1704833443695,-500.0,0.00035616,2]
[310954094,1704833443705,-500.0,0.00035616,2]
[310954096,1704833443714,-579.11,0.00035616,2]
[310954098,1704833443724,-503.14331049,0.00035616,2]
[310954100,1704833443733,-500.45328493,0.00035616,2]
[310954102,1704833443742,-500.0,0.00035616,2]
[310954104,1704833443751,-500.0,0.00035616,2]
[310954106,1704833443761,-500.0,0.00035616,2]
[310954108,1704833443770,-355.65774064,0.00035616,2]
[310954109,1704833443780,-517.86667267,0.00035616,2]
[310954111,1704833443789,-532.48570596,0.00035616,2]
[310954113,1704833443800,-500.0,0.00035616,2]
[310954115,1704833443808,-453.65598886,0.00035616,2]
[310954117,1704833443817,-220.47107168,0.00035616,2]
[310954118,1704833443826,-500.0,0.00035616,2]
[310954120,1704833443836,-500.0,0.00035616,2]
[310954122,1704833443846,-500.0,0.00035616,2]
[310954125,1704833443855,-500.0,0.00035616,2]
[310954128,1704833443865,-354.98291733,0.00035616,2]
[310954131,1704833443875,-500.0,0.00035616,2]
[310954134,1704833443884,-500.0,0.00035616,2]
[310954136,1704833443894,-500.70829364,0.00035616,2]
[310954138,1704833443903,-500.0,0.00035616,2]
[310954140,1704833443912,-899.42,0.00035616,2]
[310954142,1704833443922,-500.0,0.00035616,2]
[310954144,1704833443931,-500.0,0.00035616,2]
[310954146,1704833443940,-558.49909865,0.00035616,2]
[310954148,1704833443949,-516.41,0.00035616,2]
[310954150,1704833443959,-500.0,0.00035616,2]
[310954152,1704833443968,-500.18326723,0.00035616,2]
[310954154,1704833443977,-634.32681973,0.00035616,2]
[310954156,1704833443986,-500.0,0.00035616,2]
[310954158,1704833443995,-500.0,0.00035616,2]
[310954160,1704833444004,-500.0,0.00035616,2]
[310954162,1704833444013,-501.71932076,0.00035616,2]
[310954164,1704833444022,-500.0,0.00035616,2]
[310954166,1704833444031,-500.0,0.00035616,2]
[310954168,1704833444040,-248.34132738,0.00035616,2]
[310954170,1704833444049,-500.0,0.00035616,2]
[310954172,1704833444058,-500.0,0.00035616,2]
[310954174,1704833444067,-501.27966863,0.00035616,2]
[310954176,1704833444076,-500.0,0.00035616,2]
[310954178,1704833444085,-554.90031122,0.00035616,2]
[310954180,1704833444094,-500.0,0.00035616,2]
[310954182,1704833444103,-500.0,0.00035616,2]
[310954184,1704833444112,-511.79602753,0.00035616,2]
[310954186,1704833444121,-1488.9,0.00035616,2]
[310954188,1704833444130,-500.86234254,0.00035616,2]
[310954190,1704833444140,-2980.19,0.00035616,2]
[310954192,1704833444149,-500.0,0.00035616,2]